Cogmind - Beta 16.1 @@@ ROGUE MODE // 2026.03.08 @ 01:16:03 Player: raiguard Result: Destroyed by Y-54 Guardian with Flak Gun Performance ------------- Evolutions (3) 1500 Regions Visited (5) 1000 Robots Destroyed (66) 330 Value Destroyed (2174) 2174 Prototype IDs (1) 20 Alien Tech Used (0) 0 Bonus (200) 200 TOTAL SCORE: 5224 Bonus ------- Entered Garrisons 200 Cogmind --------- Core Integrity 0/700 Matter 124/300 Energy 98/100 System Corruption 1% Temperature Cool (12) Movement Core (50) Location -7/Garrison Parts ------- > --- POWER (2) -------- (None) > --- PROPULSION (2) --- (None) > --- UTILITY (6) ------ (None) > --- WEAPON (3) ------- (None) > --- INVENTORY (5) ---- (None) Peak State ------------ > --- POWER ------------ Light Nuclear Core Improved Deuterium Engine > --- PROPULSION ------- Light Treads Light Treads > --- UTILITY ---------- Improved Heat Sink Small Storage Unit Improved Terrain Scanner Improved Targeting Computer Hardened Light Armor Plating Hardened Light Armor Plating > --- WEAPON ----------- High-powered Shotgun Gauss Rifle Advanced Assault Cannon > --- INVENTORY -------- Light Deuterium Engine Light Deuterium Engine Light Treads Light Treads Light Treads Precision Assault Rifle Gauss Cannon Scythe [Rating: 35] Favorites ----------- Power Light Nuclear Core Engine Light Deuterium Engine Power Core Light Nuclear Core Propulsion Light Treads Treads Light Treads Utility Hardened Light Armor Plating Device Improved Terrain Scanner Storage Small Storage Unit Processor Improved Targeting Computer Protection Hardened Light Armor Plating Weapon High-powered Shotgun Energy Gun Medium Laser Energy Cannon Beam Cannon Ballistic Gun High-powered Shotgun Ballistic Cannon Advanced Assault Cannon Launcher Grenade Launcher Slashing Weapon Scythe Build | -11 -10 -9 -8 -7 -7 ------- Run | Yrd Mat Mat Mat Fac Gar Slots Evolved 6 | . . 2 2 2 . Power 1 | . . . 1 . . Propulsion . | . . . . . . Utility 4 | . . 2 1 1 . Weapon 1 | . . . . 1 . Parts Attached 53 | 4 5 14 14 16 . Power 10 | 1 . 2 3 4 . Engine 6 | 1 . 2 1 2 . Core 4 | . . . 2 2 . Reactor . | . . . . . . Propulsion 11 | 2 . 3 3 3 . Treads 11 | 2 . 3 3 3 . Leg . | . . . . . . Wheel . | . . . . . . Hover . | . . . . . . Flight . | . . . . . . Utility 16 | 1 2 4 5 4 . Device 8 | . 1 3 3 1 . Storage 2 | 1 1 . . . . Processor 2 | . . . . 2 . Hackware . | . . . . . . Protection 4 | . . 1 2 1 . Artifact . | . . . . . . Weapon 16 | . 3 5 3 5 . Energy Gun 1 | . 1 . . . . Energy Cannon 1 | . . 1 . . . Ballistic Gun 9 | . 1 3 3 2 . Ballistic Cannon 2 | . . . . 2 . Launcher 1 | . 1 . . . . Special Weapon . | . . . . . . Impact Weapon . | . . . . . . Slashing Weapon 2 | . . 1 . 1 . Piercing Weapon . | . . . . . . Special Melee Weapon . | . . . . . . Unidentified Prototypes 1 | . . . . 1 . Parts Lost 30 | . . 6 3 20 1 Power 5 | . . 1 . 4 . Propulsion 7 | . . . 2 5 . Utility 11 | . . 3 1 6 1 Weapon 7 | . . 2 . 5 . Highest Loss Streak 17 | . . 5 2 17 1 To Critical Strikes 1 | . . . . 1 . Average Backups 6 | 3 5 7 7 7 . Power 1 | . 1 1 2 1 . Propulsion 2 | . 1 1 2 2 . Utility . | . . 1 . . . Weapon 2 | 1 2 2 1 2 . Tool/Special . | . . . . . . Unused Backups 10 | . 3 4 2 1 . Power 3 | . . 2 1 . . Propulsion 2 | . 1 1 . . . Utility 1 | . 1 . . . . Weapon 4 | . 1 1 1 1 . Tool/Special . | . . . . . . Average Slot Usage (%) 90 | . 81 96 92 94 7 Engine 8 | . 14 10 8 5 . Core 5 | . . . 8 8 . Treads 18 | . 28 22 17 14 . Device 14 | . 1 28 13 14 . Storage 9 | . 14 11 9 6 . Processor 2 | . . . . 6 7 Protection 9 | . . 1 16 13 . Energy Cannon 1 | . . 7 . . . Ballistic Gun 13 | . 11 11 18 12 . Launcher 2 | . 11 2 . . . Slashing Weapon 2 | . . . . 6 . Peak Build Rating 35 | 4 7 16 24 35 2 Average Rating 19 | 3 5 13 19 31 1 On Entrance 8 | . 4 7 14 24 2 Avg Prop Armor Cover (%) . | . . . . . . Naked Turns 7 | . . . . . 7 Heaviest Build 43 | 8 14 21 35 43 . Greatest Support 46 | 40 40 46 46 40 3 Greatest Overweight (x) 3 | . . . . 3 . Average Overweight (x) . | . . . . . . Largest Inventory Capacity 8 | 8 8 8 8 8 5 Average Capacity 7 | 6 8 8 8 7 5 Most Carried 8 | 6 8 8 8 8 . Average Carried 6 | 3 5 7 7 7 . Final Capacity 8 | 8 8 8 8 5 5 Final Carried 8 | 6 8 7 8 . . Class Distribution -------------------- 52% | Scavenger-Mutant 46% | Mutant Dominant Class ---------------- Mutant | -10/Materials Mutant | -9/Materials Scavenger-Mutant | -8/Materials Scavenger-Mutant | -7/Factory Mutant | -7/Garrison Resources | -11 -10 -9 -8 -7 -7 ----------- Run | Yrd Mat Mat Mat Fac Gar Matter Collected 1423 | 54 156 430 496 287 . Remotely 336 | . . 336 . . . Salvage Created 2253 | . 284 623 708 638 . Parts 125 | . 15 42 34 34 . Haulers Intercepted . | . . . . . . Recyclers Shooed 3 | . 1 . 1 1 . Parts Field Recycled . | . . . . . . Retrieved Matter . | . . . . . . Parts Self-Destructed . | . . . . . . Prevented . | . . . . . . Parts Restored . | . . . . . . Kills | -11 -10 -9 -8 -7 -7 ------- Run | Yrd Mat Mat Mat Fac Gar Combat Hostiles Destroyed 58 | . 9 18 16 15 . Melee 5 | . . . . 5 . Guns 29 | . 4 4 16 5 . Cannons 14 | . . 11 . 3 . AOE 10 | . 5 3 . 2 . Classes Destroyed 9 | . 4 1 3 1 . Worker 5 | . 1 1 . 3 . Recycler 1 | . 1 . . . . Watcher 2 | . . . 1 1 . Swarmer 17 | . 6 4 3 4 . Grunt 31 | . 3 13 8 7 . Brawler 1 | . . . 1 . . Sentry 5 | . . 1 3 1 . Hunter 2 | . . . 1 1 . Programmer 2 | . . . . 2 . Best Kill Streak 7 | . 7 3 6 5 . Combat Bots Only 6 | . 3 3 6 4 . Max Kills in Single Turn 2 | . 2 2 1 2 . Gunslinging . | . . . . . . Exploded 2 | . 2 2 . 2 . Melee 1 | . . . . 1 . Uniques/NPCs Destroyed . | . . . . . . Combat | -11 -10 -9 -8 -7 -7 -------- Run | Yrd Mat Mat Mat Fac Gar Hostile Shots Fired 602 | . 35 122 84 293 68 Missed 200 | . 11 42 26 88 33 Hits 402 | . 24 80 58 205 35 Melee 3 | . . . 3 . . Projectile 399 | . 24 80 55 205 35 Critical Strikes 12 | . . 4 2 5 1 Damage Taken 4992 | . 222 905 829 2704 332 Core 1002 | . 30 189 83 387 313 Absorbed by Shields 57 | . . . . . 57 Regen/Repaired (Parts) 223 | . . . 42 181 . Core Remaining (%) 81 | 100 88 52 84 . . Volleys Fired 147 | . 14 43 59 31 . Largest 3 | . 2 2 2 3 . Hottest 108 | . 50 80 50 108 . Shots Fired 289 | . 18 83 117 71 . Gun 222 | . 14 42 117 49 . Cannon 61 | . . 39 . 22 . Launcher 6 | . 4 2 . . . Special . | . . . . . . Kinetic 244 | . 14 42 117 71 . Thermal 39 | . . 39 . . . Explosive 6 | . 4 2 . . . Electromagnetic . | . . . . . . Robot Hit Streak 11 | . 5 9 11 5 . Robot Miss Streak 4 | . 2 3 3 4 . Penetration Max 1 | . . . . 1 . Secondary Targets 1 | . . . . 1 . Max Gunslinging Chain 1 | . . . . 1 . Shots Hit Robots 209 | . 10 54 84 61 . Core Hits 114 | . 17 25 41 31 . Critical Kills 1 | . . . 1 . . Critical Parts Destroyed 2 | . . 1 1 . . Critical Strikes 7 | . . 1 2 4 . Destroy 3 | . . 1 2 . . Sever 4 | . . . . 4 . Melee Attacks 23 | . . 4 . 19 . Impact . | . . . . . . Slashing 23 | . . 4 . 19 . Piercing . | . . . . . . Sneak Attacks . | . . . . . . Combat Hostiles . | . . . . . . Follow-up Attacks . | . . . . . . Damage Inflicted 4407 | . 327 1008 1195 1877 . Guns 2261 | . 114 318 1176 653 . Cannons 829 | . . 457 . 372 . Explosions 733 | . 203 209 . 321 . Melee 549 | . . 24 . 525 . Ramming 35 | . 10 . 19 6 . Kinetic 2633 | . 114 318 1176 1025 . Thermal 778 | . . 457 . 321 . Explosive 412 | . 203 209 . . . Electromagnetic . | . . . . . . Impact . | . . . . . . Slashing 549 | . . 24 . 525 . Piercing . | . . . . . . Highest Corruption 2 | . 1 . 2 1 1 Average Corruption 1 | . 1 . 2 1 1 Corruption Purged . | . . . . . . Corruption Blocked . | . . . . . . Effects 20 | . 4 . 10 6 . Message Errors 7 | . 3 . 3 1 . Matter Fused 4 | . . . 2 2 . Heat Flow Errors 1 | . . . . 1 . Energy Discharges 1 | . . . 1 . . Parts Rejected 1 | . . . . 1 . Parts Fused 2 | . 1 . 1 . . Data Loss (minor) 2 | . . . 1 1 . Data Loss (major) 1 | . . . 1 . . Weapon Failures 1 | . . . 1 . . Overload Shots . | . . . . . . Overflow Damage 92 | . . 21 . 71 . Projectiles 22 | . . . . 22 . Explosions 59 | . . 21 . 38 . Melee 11 | . . . . 11 . Knockbacks 5 | . . . . 5 . Impact . | . . . . . . Kinetic 5 | . . . . 5 . Secondary . | . . . . . . Self-Inflicted Damage 391 | . 5 . . 386 . Shots 6 | . 1 . . 5 . Rammed 11 | . 2 . 5 4 . Targets Rammed 11 | . 2 . 5 4 . Kicked . | . . . . . . Crushed . | . . . . . . Highest Temperature 252 | . 2 96 252 94 11 Average Temperature 51 | . 2 25 75 35 11 Received Heat Transfer 1512 | . 42 414 351 603 102 Siege Activations . | . . . . . . Martial Activations . | . . . . . . Shielding Activations . | . . . . . . Robots Disrupted . | . . . . . . Combat Hostiles . | . . . . . . Robots Corrupted . | . . . . . . Combat Hostiles . | . . . . . . Parts Fried . | . . . . . . Impact Corruptions . | . . . . . . Robots Melted . | . . . . . . Combat Hostiles . | . . . . . . Parts Melted . | . . . . . . Heat Transferred 1162 | . . 962 . 200 . Parts Sabotaged . | . . . . . . Parts Stolen . | . . . . . . Parts Stripped . | . . . . . . Power Chain Reactions . | . . . . . . Alert | -11 -10 -9 -8 -7 -7 ------- Run | Yrd Mat Mat Mat Fac Gar Maximum Alert Level 1 | . 1 1 1 . . Low Security (%) 88 | 100 92 59 92 100 100 Level 1 11 | . 7 40 7 . . Level 2 . | . . . . . . Level 3 . | . . . . . . Level 4 . | . . . . . . Level 5 . | . . . . . . High Security . | . . . . . . Max Security . | . . . . . . Peak Influence 290 | . 218 290 216 162 2 Initial 115 | . . 85 115 87 2 Average 96 | . 41 181 147 49 1 Influence Increases 1825 | . 258 551 476 540 . Destroy 0b10 Robot/C 1160 | . 180 360 320 300 . Destroy 0b10 Robot/NC 40 | . 10 5 5 20 . Destroy Leader 254 | . 30 80 82 62 . Successful Hack 33 | . . 23 6 4 . Disable Machine 150 | . 15 30 . 105 . Destroy Structure 83 | . 23 8 3 49 . Lose Combat Pursuer 105 | . . 45 60 . . Influence Decreases 1825 | . 56 479 557 729 4 Entered New Map 384 | . . 117 159 106 2 Time Decay 1159 | . 56 302 368 433 . Lost Part 282 | . . 60 30 190 2 Squads Dispatched 12 | . 2 3 3 4 . Investigation 7 | . 2 2 2 1 . Extermination 1 | . . . . 1 . Reinforcement 3 | . . 1 1 1 . Assault . | . . . . . . Garrison 1 | . . . . 1 . Intercept . | . . . . . . Searches Triggered . | . . . . . . Construction Impeded 1 | . . . . 1 . Haulers Reinforced . | . . . . . . Active Scanning Responses . | . . . . . . Cargo Convoy Interrupts . | . . . . . . Stealth | -11 -10 -9 -8 -7 -7 --------- Run | Yrd Mat Mat Mat Fac Gar Distress Signals 3 | . . . 1 2 . Communications Jammed . | . . . . . . Distress Signals . | . . . . . . Times Spotted 103 | . 14 26 23 30 10 Peak Tracking Total 10 | . 4 9 5 7 10 Tactical Retreats 4 | . . 1 3 . . Traps | -11 -10 -9 -8 -7 -7 ------- Run | Yrd Mat Mat Mat Fac Gar Traps Triggered 6 | . 2 2 1 . 1 Indirectly . | . . . . . . Trap Hack Attempts . | . . . . . . Triggered . | . . . . . . Disarmed . | . . . . . . Reprogrammed . | . . . . . . Reused . | . . . . . . Traps Extracted . | . . . . . . Installed . | . . . . . . Triggered . | . . . . . . Machines | -11 -10 -9 -8 -7 -7 ---------- Run | Yrd Mat Mat Mat Fac Gar Machines Disabled 10 | . 1 2 . 7 . Max in Single Turn 6 | . 1 1 . 6 . Machines Repaired . | . . . . . . Machines Dismantled . | . . . . . . Machines Sabotaged . | . . . . . . Overloaded Fab Kills . | . . . . . . Hacking | -11 -10 -9 -8 -7 -7 --------- Run | Yrd Mat Mat Mat Fac Gar Machines Accessed 12 | . 2 3 4 2 1 Terminals 8 | . 1 3 3 . 1 Fabricators . | . . . . . . Repair Stations 2 | . . . 1 1 . Recycling Units 1 | . 1 . . . . Scanalyzers . | . . . . . . Garrison Access 1 | . . . . 1 . Total Hacks 36 | . 7 8 12 7 2 Successful 20 | . 2 5 8 5 . Failed 16 | . 5 3 4 2 2 Catastrophic 4 | . 1 2 . . 1 Database Lockouts . | . . . . . . Manual 4 | . . 3 1 . . Terminals 21 | . 3 8 8 . 2 Fabricators . | . . . . . . Repair Stations 10 | . . . 4 6 . Recycling Units 4 | . 4 . . . . Scanalyzers . | . . . . . . Garrison Access 1 | . . . . 1 . Terminal Hacks 9 | . . 5 4 . . Record 3 | . . 2 1 . . Emergency Access Points 2 | . . 1 1 . . Recycling Unit Index 1 | . . 1 . . . Locate Traps 1 | . . . 1 . . Recall Reinforcements 1 | . . . 1 . . Hauler Manifests 1 | . . 1 . . . Fabricator Hacks . | . . . . . . Repair Station Hacks 8 | . . . 4 4 . Scan Component 4 | . . . 2 2 . Repair 4 | . . . 2 2 . Recycling Unit Hacks 2 | . 2 . . . . Recycle Component 1 | . 1 . . . . Process 1 | . 1 . . . . Scanalyzer . | . . . . . . Garrison Access Hacks 1 | . . . . 1 . Unlock Access 1 | . . . . 1 . Unauthorized Hacks . | . . . . . . Terminals . | . . . . . . Fabricators . | . . . . . . Repair Stations . | . . . . . . Recycling Units . | . . . . . . Scanalyzers . | . . . . . . Garrison Access . | . . . . . . Data Cores Recovered . | . . . . . . Used . | . . . . . . Hacking Detections 11 | . 2 3 3 2 1 Full Trace Events 7 | . 2 2 2 1 . Feedback Events . | . . . . . . Feedback Blocked . | . . . . . . Robot Schematics Acquired . | . . . . . . Robots Built . | . . . . . . Authchips . | . . . . . . Time . | . . . . . . Total Robot Build Rating . | . . . . . . Part Schematics Acquired . | . . . . . . Parts Built . | . . . . . . Authchips . | . . . . . . Time . | . . . . . . Total Part Build Rating . | . . . . . . Part Studies Acquired . | . . . . . . Parts Repaired 4 | . . . 2 2 . Time 134 | . . . 76 58 . Parts Recycled 1 | . 1 . . . . Recycled Matter 38 | . 38 . . . . Retrieved Matter . | . . . . . . Retrieved Components . | . . . . . . Parts Scanalyzed . | . . . . . . Part Schematics Acquired . | . . . . . . Parts Damaged . | . . . . . . Bothacking | -11 -10 -9 -8 -7 -7 ------------ Run | Yrd Mat Mat Mat Fac Gar Used RIF Installer . | . . . . . . Robots Hacked . | . . . . . . Non-combat . | . . . . . . Combat . | . . . . . . Robot Hacks Applied . | . . . . . . Relay Couplers Released . | . . . . . . Fabnet Peak Effective % . | . . . . . . Robots Rewired . | . . . . . . Allies Hacked . | . . . . . . Hacks Repelled . | . . . . . . Allies | -11 -10 -9 -8 -7 -7 -------- Run | Yrd Mat Mat Mat Fac Gar Total Allies . | . . . . . . Largest Group . | . . . . . . Highest-Rated Group . | . . . . . . Highest-Rated Ally . | . . . . . . Total Orders . | . . . . . . Ally Attacks . | . . . . . . Total Damage . | . . . . . . Kills . | . . . . . . Allies Corrupted . | . . . . . . Allies Melted . | . . . . . . Intel | -11 -10 -9 -8 -7 -7 ------- Run | Yrd Mat Mat Mat Fac Gar Active Infowar (turns) 2293 | . 38 581 601 1073 . Terrain 2247 | . . 573 601 1073 . Seismic 606 | . 38 568 . . . Robot Analysis Total . | . . . . . . Derelict Logs Recovered . | . . . . . . Drone Launches . | . . . . . . Drone Recoveries . | . . . . . . Exploration | -11 -10 -9 -8 -7 -7 ------------- Run | Yrd Mat Mat Mat Fac Gar Turns Passed 3367 | 90 556 669 844 1153 55 Spaces Moved 1366 | 51 186 283 310 438 98 Core 147 | 3 . . . 46 98 Treads 1219 | 48 186 283 310 392 . Legs . | . . . . . . Wheels . | . . . . . . Hover . | . . . . . . Flight . | . . . . . . Fastest Speed 50 | 50 160 160 160 50 50 Average Speed 164 | 153 160 160 160 198 50 Slowest Speed 240 | 160 160 160 160 240 50 Overloaded Moves . | . . . . . . Propulsion Burnouts . | . . . . . . Robots Hopped . | . . . . . . Potential Cave-ins . | . . . . . . Cave-ins Triggered . | . . . . . . Exploration Rate (%) 21 | 4 44 24 26 14 17 Regions Visited 5 Branch Regions . Pre-discovered Areas . | . . . . . . Known Exits Taken 1 | . . . . 1 . Unknown Exits Taken 4 | 1 1 1 1 . . Scrap Searched . | . . . . . . Spaces Dug . | . . . . . . Terrain Destroyed 69 | . 24 7 . 38 . Melee . | . . . . . . Projectile 4 | . . . . 4 . AOE 65 | . 24 7 . 34 . Terrain Rammed . | . . . . . . Walls Destroyed . | . . . . . . Machines Disabled . | . . . . . . Actions | -11 -10 -9 -8 -7 -7 --------- Run | Yrd Mat Mat Mat Fac Gar Total 2181 | 61 425 414 551 626 104 Wait 500 | . 210 45 144 101 . Move 1361 | 50 185 282 309 437 98 Hop . | . . . . . . Pick Up 35 | 7 6 12 7 3 . Fast Attach 14 | 3 2 3 4 2 . Attach 21 | 1 2 4 4 10 . Detach 1 | . 1 . . . . Swap 30 | . 1 8 9 12 . Drop 32 | . 2 13 10 7 . Fire 147 | . 14 43 59 31 . Melee 23 | . . 4 . 19 . Ram . | . . . . . . Kick . | . . . . . . Crush 11 | . 2 . 5 4 . Escape Stasis 6 | . . . . . 6 Rewire . | . . . . . . Trap . | . . . . . . Miscellaneous . | . . . . . . Route ------- -11/Scrapyard -10/Materials (discovered 2 exits: *Mat / [*Min]) -9/Materials -8/Materials -7/Factory -7/Garrison History --------- Turn | Location | Event 63 | -11/Scrapyard | Discovered new exit (range 13) 91 | -11/Scrapyard | Entered Materials 233 | -10/Materials | Discovered new exit (range 13) 303 | -10/Materials | Build established: Mutant 611 | -10/Materials | Discovered new exit (range 11) 647 | -10/Materials | Entered another Materials area 647 | -9/Materials | Evolved 2 slots: Utility x2 901 | -9/Materials | Discovered new exit (range 11) 1259 | -9/Materials | Lost 5 parts (1p3u1w) 1316 | -9/Materials | Entered another Materials area 1316 | -8/Materials | Evolved 2 slots: Power x1, Utility x1 1774 | -8/Materials | Build established: Scavenger-Mutant 1799 | -8/Materials | Repaired Lgt. Nuclear Core 1839 | -8/Materials | Repaired Lgt. Deuterium Engine 2049 | -8/Materials | Discovered new exit (range 15) 2160 | -8/Materials | Entered Factory 2160 | -7/Factory | Evolved 2 slots: Utility x1, Weapon x1 2268 | -7/Factory | Repaired Hrd. Light Armor Plating 2296 | -7/Factory | Repaired Lgt. Treads 3152 | -7/Factory | Lost 3 parts (1u2w) 3223 | -7/Factory | Garrison activated, responded to threat 3306 | -7/Factory | Core integrity fell below 50% 3313 | -7/Factory | Identified exit to Garrison 3313 | -7/Factory | Entered Garrison 3331 | -7/Garrison | Lost 17 parts (4p5n5u3w) 3353 | -7/Garrison | Triggered checkpoint 3354 | -7/Garrison | Triggered checkpoint 3362 | -7/Garrison | Core integrity fell below 20% 3368 | -7/Garrison | Destroyed by Y-54 Guardian with Flak Gun Last Messages --------------- 03348_ Connecting with Garrison Terminal... 03354_ Triggered Stasis Trap. 03354_ A bubble of rippling energy engulfs the area. 03354_ Field strength at 94. 03354_ Beams of light sweep through the air. An alarm sounds. 03355_ Field strength at 88. 03356_ Field strength at 78. 03357_ Field strength at 69. 03358_ Field strength at 45. 03359_ Field strength at 27. 03360_ Field strength at 1. 03361_ Stasis field depleted. 03361_ Critical hit (Burn: +37). 03361_ Imp. Targeting Computer destroyed. 03361_ S-27 Virus destroyed. 03362_ C-30 ARC bursts open, deploying its payload. 03362_ P-60 Hacker unfolds itself. Map ----- +----------------------------------------------------+ | ?????????????????????????????????????# #"#???????? | | ?????????????????????????????????????# "#???????? | | ?????????????????????????????????????# "#???????? | | ?????????????????????????????????????# "#???????? | | ?????????????????????????????????????# #"#???????? | | ?????????????????????????????????????# ###???????? | | ?????????????????????????????????????# #?????????? | | ?????????????????????????????????????# #?????????? | | ?????????????????????????????????????# #?????????? | | ?????????????????????????????????????# #?????????? | | ?????????????????#####???????????????" #?????????? | | ?????????????????# #???????????????" #?????????? | | ?????????????????# ###########?????" #?????????? | | ?????????????????# #?????# #?????????? | | ?????????????????# #?????# #?????????? | | ?????????????????############ ####### #?????????? | | ????????????????????????????# #?????????? | | ????????????????????????????# #########?????????? | | ????????????????????????????# #?????????????????? | | ????????????????????????????# #?????????????????? | | ????????????????????????????# #?????????????????? | | ????????????????????????????# #?????????????????? | | ????????????????????????????# #?????????????????? | | ????????????????????????????# #?????????????????? | | ?????????????????############ #??????????????###? | | ?????????????????# @ #????????????? #? | | ????????????????#Y ########s #??????###### ## | | ????????????????????????????# ######## ^ | | ????????????????????????##### | | ????????????????????????#" ^ | | ????????????????????????#"T"###########= ## ## | | ????????????????????????#####?????????#% #?? #? | | ?????????????????????????????????????? [ ?? | | ????????????????????????????????????? ?? | | ????????????????????????????????????# ? | | ????????????????????????????????????# ? | | ????????????????????????????????????### ## ## | | ??????????????????????????????????????# #? #? | | ?????????????????????????????????????? ? | | ?????????????????????????????????????? ?? | | ?????????????????????????????????????? % ? | | ??????????????????????????????????????######??""?? | | ?????????????????????????????????????????????????? | | ?????????????????????????????????????????????????? | | ?????????????????????????????????????????????????? | | ?????????????????????????????????????????????????? | | ?????????????????????????????????????????????????? | | ?????????????????????????????????????????????????? | | ?????????????????????????????????????????????????? | | ?????????????????????????????????????????????????? | +----------------------------------------------------+ Best States ------------- Heat Dissipation 48 Energy Generation 25 Energy Capacity 350 Matter Stores 300 Matter Capacity 300 Sight Range 16 Terrain Scan Range 16 Terrain Scan Density 10 Armor Coverage 450 Evasion (%) 50 Targeting Accuracy 6 Recoil Reduction 2 Item Schematics ----------------- None Robot Schematics ------------------ None Fabricated ------------ Nothing Repaired ---------- Lgt. Nuclear Core | 72% | -8/Materials Lgt. Deuterium Engine | 44% | -8/Materials Hrd. Light Armor Plating | 33% | -7/Factory Lgt. Treads | 56% | -7/Factory Studied --------- None Alien Tech Used ----------------- None Achievements -------------- Into The Breach Challenges ------------ None Game ------ Seed InsulatedIonLattice Manual? 0 Play Time 00:46:37 Cumulative 26.0 hours Start 2026.03.08 @ 00:24:39 End 2026.03.08 @ 01:16:03 Sessions 1 Manual Loads 0 Difficulty Rogue Special Mode None Game No. 32 Rogue 32 Adventurer 0 Explorer 0 Win Type - Total 0 Types 0/0/0/0/0/0/0/0/0/0 Lore% 5 Gallery% 15 Achievement% 11 Wizard Run 0 Options --------- Layout 2 ASCII 0 Keyboard 1 Movement Vi Keybinds 0 Fullscreen 2 Font 28/SmallcapsGlow Map View 50x52 Zoom Use 0% Tactical HUD 1 Map Filters NONE Filters NONE Steam 1 RUN: e9f75a65-a90a-4fcd-9eaa-09be9f86e3a2